fUST/lending_fUST_20250607
["ID","MTS","AMOUNT","RATE_DAILY","PERIOD"]
[364847695,1749274245251,-440.0,0.00022331,2]
[364847697,1749274245260,-440.0,0.00022331,2]
[364847699,1749274245271,-1202.5,0.00022331,2]
[364847701,1749274245280,-462.28,0.00022331,2]
[364847704,1749274245290,-440.0,0.00022331,2]
[364847706,1749274245300,-794.03,0.00022331,2]
[364847708,1749274245310,-532.66,0.00022331,2]
[364847710,1749274245319,-440.0,0.00022331,2]
[364847712,1749274245328,-440.0,0.00022331,2]
[364847714,1749274245339,-440.0,0.00022331,2]
[364847716,1749274245349,-440.0,0.00022333,2]
[364847718,1749274245360,-258.62900688,0.00022377,2]
[364847720,1749274245369,-803.73412704,0.00022417,7]
[364847722,1749274245378,-500.0,0.00022465,2]
[364847724,1749274245387,-245.94030836,0.00022486,2]
[364847726,1749274245398,-358.81,0.000225,14]
[364847728,1749274245407,-546.81,0.000225,7]
[364847730,1749274245416,-803.73412704,0.00022555,7]
[364847732,1749274245426,-1834.07,0.00022604,2]
[364847734,1749274245435,-440.0,0.00022605,2]
[364847736,1749274245445,-668.73,0.00022605,2]
[364847738,1749274245454,-440.0,0.00022605,2]
[364847740,1749274245463,-440.0,0.00022605,2]
[364847742,1749274245473,-440.0,0.00022605,2]
[364847744,1749274245482,-1202.5,0.00022605,2]
[364847746,1749274245492,-462.28,0.00022605,2]
[364847748,1749274245501,-440.0,0.00022605,2]
[364847750,1749274245511,-794.03,0.00022605,2]
[364847752,1749274245521,-532.66,0.00022605,2]
[364847754,1749274245530,-440.0,0.00022605,2]
[364847756,1749274245539,-440.0,0.00022605,2]
[364847758,1749274245550,-502.15774599,0.00022675,2]
[364847760,1749274245559,-1000.0,0.00022675,2]
[364847762,1749274245569,-803.73412704,0.00022693,7]
[364847764,1749274245578,-5000.0,0.00022722,2]
[364847766,1749274245591,-1000.0,0.00022759,2]
[364847768,1749274245601,-1000.0,0.00022759,2]
[364847770,1749274245610,-358.81,0.000228,14]
[364847772,1749274245620,-803.73412704,0.00022831,8]
[364847774,1749274245631,-635.44509,0.00022834,3]
[364847776,1749274245641,-258.62900688,0.00022851,2]
[364847778,1749274245651,-1834.07,0.00022878,2]
[364847780,1749274245660,-440.0,0.00022879,2]
[364847782,1749274245669,-668.73,0.00022879,2]
[364847784,1749274245678,-440.0,0.00022879,2]
[364847786,1749274245688,-440.0,0.00022879,2]
[364847789,1749274245698,-440.0,0.00022879,2]
[364847791,1749274245707,-1202.5,0.00022879,2]
[364847793,1749274245716,-462.28,0.00022879,2]
[364847795,1749274245725,-440.0,0.00022879,2]
[364847797,1749274245735,-794.03,0.00022879,2]
[364847799,1749274245744,-532.66,0.00022879,2]
[364847801,1749274245753,-440.0,0.00022879,2]
[364847803,1749274245762,-440.0,0.00022879,2]
[364847805,1749274245772,-803.73412704,0.00022969,8]
[364847807,1749274245782,-167859.37311874,0.00023,2]
[364847817,1749274245867,-332.51116427,0.00023,2]
[364847858,1749274246250,-250.0,0.00019953,2]
[364847860,1749274246261,-160.0,0.00020168,2]
[364847862,1749274246271,-440.0,0.00022605,2]
[364847864,1749274246280,-440.0,0.00022879,2]
[364847866,1749274246290,-14840.60649277,0.00023,2]
[364847875,1749274246362,-14904.57668286,0.00023,2]
[364847877,1749274246374,-6273.74170196,0.00023,2]
[364850230,1749274482108,159.0,0.00016712,3]
[364850231,1749274799385,166.0,0.0001674,3]
[364850232,1749274899387,380.86032988,0.00024658,120]
[364850234,1749274913203,161.067914,0.00013699,2]
[364850253,1749275239132,-158.689502,0.00019281,2]
[364850254,1749275239153,-201.00758388,0.00019348,2]
[364850255,1749275239176,-276.0,0.0001959,2]
[364850256,1749275239198,-1200.0,0.0001959,2]
[364850257,1749275239220,-151.30541512,0.00019852,2]
[364850258,1749275239241,-162.92,0.00019854,2]
[364850259,1749275239262,-300.0,0.00019862,2]
[364850260,1749275239283,-300.0,0.00019863,2]
[364850261,1749275239316,-300.0,0.00019863,2]
[364850262,1749275239343,-300.0,0.00019863,2]
[364850263,1749275239369,-440.0,0.00019863,2]
[364850264,1749275239394,-440.0,0.00019863,2]
[364850265,1749275239419,-440.0,0.00019863,2]
[364850266,1749275239444,-440.0,0.00019863,2]
[364850267,1749275239469,-440.0,0.00019863,2]
[364850268,1749275239492,-430.0,0.00019864,2]
[364850269,1749275239514,-430.0,0.00019864,2]
[364850270,1749275239536,-440.0,0.00019864,2]
[364850271,1749275239558,-440.0,0.00019864,2]
[364850272,1749275239581,-440.0,0.00019864,2]
[364850273,1749275239602,-440.0,0.00019864,2]
[364850274,1749275239623,-440.0,0.00019864,2]
[364850275,1749275239644,-440.0,0.00019864,2]
[364850276,1749275239665,-430.0,0.00019864,2]
[364850277,1749275239686,-430.0,0.00019864,2]
[364850278,1749275239707,-481.69,0.00019864,2]
[364850279,1749275239728,-187.40697428,0.00019864,2]
[364850280,1749275239750,-452.29,0.00019864,2]
[364850281,1749275239771,-430.0,0.00019864,2]
[364850282,1749275239793,-440.0,0.00019864,2]
[364850283,1749275239814,-230.80438774,0.00019864,2]
[364850284,1749275244129,-199.19561226,0.00019864,2]
[364850285,1749275244295,-430.0,0.00019864,2]
[364850286,1749275244317,-430.0,0.00019864,2]
[364850287,1749275244339,-430.0,0.00019864,2]
[364850288,1749275244361,-430.0,0.00019864,2]
[364850289,1749275244383,-430.0,0.00019864,2]
[364850290,1749275244404,-430.0,0.00019864,2]
[364850291,1749275244425,-163.5218092,0.00019864,2]
[364850292,1749275244445,-430.0,0.00019864,2]
[364850293,1749275244467,-461.81979733,0.00019864,2]
[364850294,1749275244488,-430.0,0.00019864,2]
[364850295,1749275244509,-440.0,0.00019864,2]
[364850296,1749275244531,-564.92835148,0.00019864,2]
[364850297,1749275244554,-432.81345013,0.00019864,2]
[364850298,1749275244575,-440.0,0.00019864,2]
[364850299,1749275244597,-205.21767907,0.00019864,2]
[364850300,1749275244619,-440.0,0.00019864,2]
[364850301,1749275244641,-143.70470509,0.00019864,2]
[364850363,1749275432639,-300.0,0.00019405,2]
[364850365,1749275432649,-300.0,0.00019405,2]
[364850367,1749275432659,-300.0,0.00019405,2]
[364850370,1749275432668,-1200.0,0.00019405,2]
[364850372,1749275432679,-23569.88985368,0.00019406,2]
[364851170,1749275446626,-1330.11014632,0.00019406,2]
[364851172,1749275446636,-440.0,0.00019863,2]
[364851174,1749275446646,-174.98859259,0.00019863,2]
[364851176,1749275446656,-440.0,0.00019863,2]
[364851178,1749275446666,-440.0,0.00019863,2]
[364851180,1749275446675,-440.0,0.00019863,2]
[364851182,1749275446685,-247.85034157,0.00019863,2]
[364851184,1749275446695,-440.0,0.00019863,2]
[364851186,1749275446704,-993.45,0.00019863,2]
[364851188,1749275446714,-296.29529491,0.00019864,2]
[364851190,1749275446724,-441.3202552,0.00019864,2]
[364851192,1749275446734,-433.40716418,0.00019864,2]
[364851194,1749275446744,-440.0,0.00019864,2]
[364851197,1749275446754,-440.0,0.00019864,2]
[364851199,1749275446764,-813.2066457,0.0001988,2]
[364851201,1749275446773,-500.0,0.00020052,2]
[364851203,1749275446783,-1053.52953655,0.00020052,2]
[364851205,1749275446795,-766.64266562,0.00020052,2]
[364851207,1749275446807,-1224.04779783,0.00020052,2]
[364851209,1749275446817,-440.0,0.00020137,2]
[364851211,1749275446827,-531.36672061,0.00020137,2]
[364851213,1749275446838,-440.0,0.00020137,2]
[364851215,1749275446847,-440.0,0.00020137,2]
[364851217,1749275446856,-440.0,0.00020137,2]
[364851219,1749275446867,-440.0,0.00020137,2]
[364851221,1749275446876,-440.0,0.00020137,2]
[364851223,1749275446885,-430.0,0.00020138,2]
[364851225,1749275446895,-420.0,0.00020138,2]
[364851227,1749275446905,-161.146,0.00020168,2]
[364851229,1749275446914,-440.0,0.00020168,2]
[364851231,1749275446923,-440.0,0.00020168,2]
[364851233,1749275446933,-440.0,0.00020168,2]
[364851235,1749275446942,-638.26,0.00020168,2]
[364851237,1749275446951,-440.0,0.00020168,2]
[364851239,1749275446963,-161.067914,0.00020187,2]
[364851241,1749275446972,-423.90693687,0.00020238,2]
[364851243,1749275446982,-266.69966384,0.00020238,2]
[364856953,1749275934181,1000.0,0.00024,120]
[364856954,1749275959894,3067.64,0.00016922,2]
[364856955,1749276038348,3028.6,0.00016894,2]
[364856957,1749276122419,2990.05,0.00016891,2]
[364856958,1749276208179,2951.99,0.00016836,2]
[364856961,1749276269729,161.067914,0.00013699,2]
[364856962,1749276275463,-5903.99,0.00018366,2]
[364856963,1749276275492,-240.02681948,0.0001921,2]
[364856964,1749276275522,-250.228168,0.0001931,2]
[364856965,1749276275550,-158.689502,0.00019466,2]
[364856966,1749276275580,-300.0,0.0001986,2]
[364856967,1749276275612,-300.0,0.0001986,2]
[364856968,1749276275643,-300.0,0.00019861,2]
[364856969,1749276275671,-282.0,0.00019861,2]
[364856970,1749276275695,-300.0,0.00019861,2]
[364856971,1749276275720,-1200.0,0.00019861,2]
[364856972,1749276275746,-303.91061213,0.00019863,2]
[364856973,1749276275777,-440.0,0.00019863,2]
[364856974,1749276275804,-440.0,0.00019863,2]
[364856975,1749276275828,-440.0,0.00019863,2]
[364856976,1749276275853,-440.0,0.00019863,2]
[364856977,1749276275879,-573.47976568,0.00019863,2]
[364856978,1749276275905,-440.0,0.00019863,2]
[364856979,1749276275931,-446.85778993,0.00019863,2]
[364856980,1749276275956,-315.44620358,0.00019863,2]
[364856981,1749276275980,-441.85893381,0.00019863,2]
[364856982,1749276276008,-430.0,0.00019863,2]
[364856983,1749276276032,-430.0,0.00019863,2]
[364856984,1749276276060,-440.0,0.00019863,2]
[364856985,1749276276085,-8855.98,0.00019897,2]
[364856986,1749276276139,-842.99926757,0.000199,2]
[364856987,1749276276169,-184.45523127,0.00020037,2]
[364856988,1749276276198,-500.0,0.00020052,2]
[364856989,1749276276237,-842.99926737,0.00020072,2]
[364856990,1749276276265,-411.31626889,0.00020136,2]
[364856991,1749276276297,-155.06217029,0.00020136,2]
[364856992,1749276290400,2726.57,0.00016847,2]
[364856994,1749276373132,2691.87,0.00016896,2]
[364856996,1749276426105,-5383.74,0.00018431,2]
[364856997,1749276426136,-786.79931627,0.000199,2]
[364856998,1749276426159,-300.0,0.00019908,2]
[364856999,1749276426183,-300.0,0.00019908,2]
[364857000,1749276426205,-300.0,0.00019909,2]
[364857001,1749276426225,-300.0,0.00019909,2]
[364857002,1749276426251,-300.0,0.00019909,2]
[364857003,1749276426274,-300.0,0.00019909,2]
[364857004,1749276426296,-399.61501676,0.00019909,2]
[364857005,1749276429155,-615.38498324,0.00019909,2]
[364857006,1749276429181,-440.0,0.00019961,2]
[364857007,1749276429207,-440.0,0.00019961,2]
[364857008,1749276429229,-440.0,0.00019961,2]
[364857009,1749276429255,-440.0,0.00019961,2]
[364857010,1749276429281,-440.0,0.00019961,2]
[364857011,1749276429306,-440.0,0.00019961,2]
[364857012,1749276429332,-440.0,0.00019961,2]
[364857013,1749276429354,-4065.56338549,0.00019967,2]
[364857014,1749276454613,2537.34,0.00016909,2]
[364857015,1749276535723,2505.05,0.00016905,2]
[364857016,1749276618721,842.8,0.00016888,2]
[364857017,1749276618747,1630.37,0.00016888,2]
[364857063,1749276632713,-2328.13469912,0.00018423,2]
[364857065,1749276632726,-2618.20530088,0.00018423,2]
[364857068,1749276632737,-150.0,0.000189,2]
[364857070,1749276632747,-760.57267252,0.000199,2]
[364857072,1749276632757,-4341.03103568,0.00019958,2]
[364857074,1749276632768,-954.31355002,0.00019958,2]
[364857076,1749276632784,-385.83333708,0.00019958,2]
[364857137,1749276638510,-1738.32207722,0.00019958,2]
[364857138,1749276638526,-300.0,0.0001996,2]
[364857139,1749276638536,-440.0,0.00019961,2]
[364857140,1749276638546,-440.0,0.00019961,2]
[364857141,1749276638556,-952.06,0.00019961,2]
[364857142,1749276638567,-500.0,0.00020052,2]
[364857143,1749276638576,-760.57267233,0.00020072,2]
[364857144,1749276638586,-440.0,0.00020136,2]
[364857145,1749276638596,-440.0,0.00020136,2]
[364857146,1749276638611,-440.0,0.00020136,2]
[364857147,1749276638621,-440.0,0.00020136,2]
[364857148,1749276638631,-440.0,0.00020136,2]
[364857149,1749276638642,-440.0,0.00020136,2]
[364857150,1749276638653,-440.0,0.00020136,2]
[364857151,1749276638663,-440.0,0.00020136,2]
[364857152,1749276638673,-440.0,0.00020136,2]
[364857153,1749276638684,-440.0,0.00020136,2]
[364857154,1749276638694,-440.0,0.00020136,2]
[364857155,1749276638704,-440.0,0.00020136,2]
[364857157,1749276638714,-440.0,0.00020136,2]
[364857159,1749276638724,-262.71262516,0.00020136,2]
[364857161,1749276638734,-440.0,0.00020136,2]
[364857163,1749276638744,-440.0,0.00020136,2]
[364857164,1749276638753,-440.0,0.00020136,2]
[364857165,1749276638763,-217.792,0.00020168,2]
[364857166,1749276638773,-410.71691079,0.00020234,2]
[364857167,1749276638783,-330.82302092,0.00020234,2]
[364857168,1749276638793,-168.44,0.00020235,2]
[364857169,1749276638803,-375.79,0.00020235,2]
[364857170,1749276638812,-160.0,0.00020237,2]
[364857171,1749276638822,-160.0,0.00020237,2]
[364857172,1749276638832,-834.52263295,0.00020237,2]
[364857173,1749276638842,-160.0,0.00020237,2]
[364857174,1749276638852,-213.01382694,0.00020239,2]
[364857175,1749276638863,-160.0,0.00020239,2]
[364857176,1749276638873,-229.56495552,0.00020239,2]
[364857177,1749276638882,-842.5625,0.00020239,2]
[364857178,1749276638892,-760.57267233,0.00020245,2]
[364857179,1749276638902,-184.45523127,0.00020399,2]
[364857180,1749276638912,-440.0,0.00020409,2]
[364857181,1749276638922,-440.0,0.00020409,2]
[364857182,1749276638932,-952.06,0.00020409,2]
[364857183,1749276638941,-440.0,0.00020409,2]
[364857184,1749276638951,-440.0,0.00020409,2]
[364857185,1749276638960,-440.0,0.00020409,2]
[364857186,1749276638970,-440.0,0.0002041,2]
[364857187,1749276638981,-477.93213283,0.0002041,2]
[364857188,1749276638990,-440.0,0.0002041,2]
[364857189,1749276639000,-467.5,0.0002041,2]
[364857190,1749276639010,-440.0,0.0002041,2]
[364857191,1749276639020,-440.0,0.0002041,2]
[364857192,1749276639031,-165.94748894,0.0002041,2]
[364857193,1749276639041,-440.0,0.0002041,2]
[364857194,1749276639052,-440.0,0.0002041,2]
[364857195,1749276639062,-155.98,0.0002041,2]
[364857196,1749276639073,-760.57267233,0.00020417,3]
[364857197,1749276639083,-440.0,0.00020499,2]
[364857198,1749276639094,-440.0,0.00020499,2]
[364857199,1749276639106,-683.94,0.00020499,2]
[364857200,1749276639115,-440.0,0.00020499,2]
[364857201,1749276639126,-1000.0,0.000205,2]
[364857202,1749276639136,-760.57267233,0.0002059,3]
[364857203,1749276639146,-440.0,0.00020683,2]
[364857204,1749276639156,-440.0,0.00020683,2]
[364857205,1749276639166,-440.0,0.00020683,2]
[364857206,1749276639178,-440.0,0.00020683,2]
[364857207,1749276639188,-440.0,0.00020683,2]
[364857208,1749276639198,-440.0,0.00020684,2]
[364857209,1749276639208,-154.4526129,0.00020684,2]
[364857210,1749276639220,-440.0,0.00020684,2]
[364857211,1749276639230,-760.57267233,0.00020762,3]
[364857212,1749276639240,-440.0,0.00020773,2]
[364857213,1749276639250,-440.0,0.00020773,2]
[364857214,1749276639260,-105.22162304,0.00020773,2]
[364857215,1749276639273,-578.71837696,0.00020773,2]
[364857216,1749276639283,-440.0,0.00020773,2]
[364857217,1749276639293,-112.05608826,0.00020911,2]
[364857218,1749276639305,-805.6440047,0.00020911,2]
[364857462,1749276643607,-34.35990704,0.00020911,2]
[364857464,1749276643617,-177.84558405,0.00020912,2]
[364857466,1749276643628,-209.63423012,0.00020912,2]
[364857642,1749276646671,-819.64835284,0.00020912,2]
[364857643,1749276646939,-0.04879374,0.00020912,2]
[364857644,1749276646951,-470.6686233,0.00020912,2]
[364857645,1749276646962,-1500.0,0.00020912,2]
[364857646,1749276646972,-369.23139649,0.00020912,2]
[364857647,1749276701659,2321.82,0.00016975,2]
[364857648,1749276783017,2292.27,0.00017061,2]
[364857652,1749276867086,2319.36,0.00017171,2]
[364857653,1749276948845,2289.84,0.00016977,2]
[364857654,1749277031145,2260.69,0.00016862,2]
[364857655,1749277115163,2231.92,0.00016987,2]
[364857656,1749277198000,2203.52,0.00016898,2]
[364857657,1749277258267,159.245455,0.00013699,2]
[364857664,1749277628136,-376.95851355,0.000189,2]
[364857665,1749277628161,-2175.47,0.00019003,2]
[364857666,1749277628183,-250.2281696,0.00019079,2]
[364857667,1749277628206,-152.13045106,0.000192,2]
[364857668,1749277628230,-183.793307,0.00019489,2]
[364857669,1749277628253,-300.0,0.00019997,2]
[364857670,1749277628275,-300.0,0.00019998,2]
[364857671,1749277628298,-1134.0,0.00019998,2]
[364857672,1749277628321,-300.0,0.00019998,2]
[364857673,1749277628346,-440.0,0.00019999,2]
[364857674,1749277628372,-440.0,0.00019999,2]
[364857675,1749277628397,-420.23906373,0.00019999,2]
[364857676,1749277635103,-19.76093627,0.00019999,2]
[364857677,1749277635128,-1194.22,0.00019999,2]
[364857678,1749277635152,-440.0,0.00019999,2]
[364857679,1749277635175,-440.0,0.0002,2]
[364857680,1749277635196,-440.0,0.0002,2]
[364857681,1749277635220,-440.0,0.0002,2]
[364857682,1749277635244,-440.0,0.0002,2]
[364857683,1749277635270,-528.83,0.0002,2]
[364857684,1749277635310,-440.0,0.0002,2]
[364857685,1749277635336,-440.0,0.0002,2]
[364857686,1749277635362,-440.0,0.0002,2]
[364857687,1749277635387,-440.0,0.0002,2]
[364857688,1749277635410,-440.0,0.0002,2]
[364857689,1749277635437,-440.0,0.0002,2]
[364857690,1749277635461,-440.0,0.0002,2]
[364857691,1749277635488,-440.0,0.0002,2]
[364857692,1749277635513,-440.0,0.0002,2]
[364857693,1749277635540,-156.40620013,0.0002,2]
[364857713,1749277721776,1359.81302392,0.0002,120]
[364857767,1749277832713,-251.3056757,0.000189,2]
[364857769,1749277832724,-2147.78,0.0001897,2]
[364857770,1749277832734,-3419.62473898,0.00018999,2]
[364857842,1749277838903,-524.3489513,0.00018999,2]
[364857908,1749277841186,-14581.49750382,0.00018999,2]
[364857910,1749277841196,-158.689502,0.00019184,2]
[364857912,1749277841206,-300.0,0.00019998,2]
[364857914,1749277841216,-440.0,0.00019999,2]
[364857917,1749277841227,-440.0,0.00019999,2]
[364857919,1749277841236,-440.0,0.00019999,2]
[364857921,1749277841246,-440.0,0.00019999,2]
[364857923,1749277841256,-440.0,0.00019999,2]
[364857925,1749277841265,-506.8,0.00019999,2]
[364857927,1749277841275,-113.09845826,0.00019999,2]
[364857929,1749277841287,-326.90154174,0.00019999,2]
[364857931,1749277841297,-430.0,0.00019999,2]
[364857933,1749277841307,-440.0,0.00019999,2]
[364857935,1749277841316,-440.0,0.00019999,2]
[364857937,1749277841326,-476.2,0.00019999,2]
[364857939,1749277841335,-430.0,0.00019999,2]
[364857941,1749277841345,-440.0,0.00019999,2]
[364857943,1749277841354,-440.0,0.00019999,2]
[364857944,1749277841364,-287.89379987,0.0002,2]
[364857945,1749277841373,-440.0,0.0002,2]
[364857946,1749277841383,-440.0,0.0002,2]
[364857947,1749277841392,-3327.53257659,0.0002,2]
[364857948,1749277841403,-880.51,0.0002,2]
[364857949,1749277841413,-440.0,0.0002,2]
[364857950,1749277841423,-440.0,0.0002,2]
[364857951,1749277841432,-440.0,0.0002,2]
[364857952,1749277841443,-440.0,0.0002,2]
[364857953,1749277841453,-440.0,0.0002,2]
[364857954,1749277841463,-440.0,0.0002,2]
[364857955,1749277841473,-1144.46,0.0002,2]
[364857956,1749277841484,-440.0,0.0002,2]
[364857957,1749277841494,-440.0,0.0002,2]
[364857958,1749277841505,-440.0,0.0002,2]
[364857959,1749277841515,-500.0,0.00020052,2]
[364857960,1749277841525,-353.1243127,0.000201,2]
[364857961,1749277841535,-319.8102269,0.000201,2]
[364857962,1749277841545,-153.0000001,0.000201,2]
[364857963,1749277841555,-158.6620137,0.000201,2]
[364857964,1749277841566,-245.334,0.00020176,2]
[364857965,1749277841576,-158.4237361,0.000202,2]
[364857966,1749277841586,-213.01382694,0.00020233,2]
[364857967,1749277841597,-160.0,0.00020234,2]
[364857968,1749277841607,-229.56495552,0.00020234,2]
[364857969,1749277841618,-160.0,0.00020234,2]
[364857970,1749277841628,-834.52263295,0.00020234,2]
[364857971,1749277841639,-440.0,0.00020273,2]
[364857972,1749277841648,-440.0,0.00020273,2]
[364857973,1749277841658,-440.0,0.00020273,2]
[364857974,1749277841668,-506.8,0.00020273,2]
[364857975,1749277841679,-440.0,0.00020273,2]
[364857976,1749277841688,-440.0,0.00020273,2]
[364857977,1749277841699,-440.0,0.00020273,2]
[364857978,1749277841709,-1144.46,0.00020273,2]
[364857979,1749277841719,-440.0,0.00020273,2]
[364857980,1749277841729,-440.0,0.00020273,2]
[364857981,1749277841741,-166.0,0.00020274,2]
[364857982,1749277841751,-440.0,0.00020274,2]
[364857983,1749277841761,-440.0,0.00020274,2]
[364857984,1749277841771,-444.3,0.00020274,2]
[364857985,1749277841781,-440.0,0.00020274,2]
[364857986,1749277841791,-440.0,0.00020274,2]
[364857987,1749277841802,-880.51,0.00020274,2]
[364857988,1749277841812,-440.0,0.00020274,2]
[364857989,1749277841821,-440.0,0.00020274,2]
[364857990,1749277841833,-440.0,0.00020274,2]
[364857991,1749277841843,-440.0,0.00020274,2]
[364857992,1749277841853,-440.0,0.00020274,2]
[364857993,1749277841862,-440.0,0.00020274,2]
[364857994,1749277841873,-440.0,0.00020274,2]
[364857995,1749277841884,-440.0,0.00020274,2]
[364857996,1749277841895,-440.0,0.00020274,2]
[364857997,1749277841904,-158.6620137,0.000203,2]
[364857998,1749277841914,-573.031888,0.000203,2]
[364857999,1749277841923,-316.2595778,0.00020478,2]
[364858000,1749277841937,-307.1121227,0.00020478,2]
[364858001,1749277841947,-332.4754037,0.00020478,2]
[364858002,1749277841957,-440.0,0.00020547,2]
[364858003,1749277841967,-440.0,0.00020547,2]
[364858004,1749277841977,-581.03,0.00020547,2]
[364858005,1749277841987,-506.8,0.00020547,2]
[364858006,1749277841998,-440.0,0.00020547,2]
[364858007,1749277842010,-440.0,0.00020547,2]
[364858008,1749277842019,-440.0,0.00020547,2]
[364858009,1749277842030,-440.0,0.00020547,2]
[364858010,1749277842040,-440.0,0.00020547,2]
[364858011,1749277842049,-159.245455,0.00020548,2]
[364858012,1749277842059,-440.0,0.00020548,2]
[364858013,1749277842069,-444.3,0.00020548,2]
[364858014,1749277842079,-440.0,0.00020548,2]
[364858015,1749277842089,-440.0,0.00020548,2]
[364858016,1749277842099,-880.51,0.00020548,2]
[364858017,1749277842109,-440.0,0.00020548,2]
[364858018,1749277842119,-440.0,0.00020548,2]
[364858019,1749277842128,-440.0,0.00020548,2]
[364858020,1749277842138,-440.0,0.00020548,2]
[364858021,1749277842147,-440.0,0.00020548,2]
[364858022,1749277842157,-440.0,0.00020548,2]
[364858023,1749277842167,-440.0,0.00020548,2]
[364858024,1749277842177,-440.0,0.00020548,2]
[364858025,1749277842187,-440.0,0.00020548,2]
[364858026,1749277842197,-581.5520987,0.000206,2]
[364858027,1749277842206,-158.6620137,0.000206,2]
[364858028,1749277842216,-573.031888,0.000206,2]
[364858029,1749277842226,-1144.46,0.00020682,2]
[364858030,1749277842235,-1064.90681396,0.00020695,2]
[364858033,1749277843918,-440.0,0.00020821,2]
[364858034,1749277843932,-440.0,0.00020821,2]
[364858035,1749277843942,-506.8,0.00020821,2]
[364858036,1749277843952,-163.33,0.00020821,2]
[364858037,1749277843962,-440.0,0.00020821,2]
[364858038,1749277843973,-440.0,0.00020821,2]
[364858039,1749277843983,-440.0,0.00020821,2]
[364858040,1749277843994,-440.0,0.00020821,2]
[364858041,1749277844005,-440.0,0.00020822,2]
[364858042,1749277844015,-444.3,0.00020822,2]
[364858043,1749277844025,-528.75,0.00020822,2]
[364858044,1749277844035,-440.0,0.00020822,2]
[364858045,1749277844045,-880.51,0.00020822,2]
[364858046,1749277844055,-440.0,0.00020822,2]
[364858047,1749277844065,-440.0,0.00020822,2]
[364858048,1749277844075,-440.0,0.00020822,2]
[364858049,1749277844085,-440.0,0.00020822,2]
[364858050,1749277844095,-235.17813225,0.00020822,2]
[364858052,1749277846902,-440.0,0.00019999,2]
[364858053,1749277846913,-204.82186775,0.00020822,2]
[364858054,1749277846922,-440.0,0.00020822,2]
[364858055,1749277846937,-440.0,0.00020822,2]
[364858056,1749277846947,-440.0,0.00020822,2]
[364858057,1749277846956,-440.0,0.00020822,2]
[364858058,1749277846967,-635.90493499,0.000209,4]
[364858059,1749277846978,-1144.46,0.00020911,2]
[364858060,1749277846988,-1144.46,0.00020911,2]
[364858061,1749277846999,-207.4,0.00020912,2]
[364858062,1749277847011,-1286.293216,0.00020912,2]
[364858063,1749277847022,-1500.0,0.00020912,2]
[364858064,1749277847032,-1500.0,0.00020912,2]
[364858065,1749277847042,-1500.0,0.00020912,2]
[364858066,1749277847053,-1500.0,0.00020912,2]
[364858067,1749277847064,-1500.0,0.00020912,2]
[364858068,1749277847074,-5000.0,0.00020912,2]
[364858069,1749277847086,-1500.0,0.00020912,2]
[364858070,1749277847097,-1500.0,0.00020912,2]
[364858071,1749277847107,-1500.0,0.00020912,2]
[364858072,1749277847117,-830.53431937,0.00020912,2]
[364858073,1749277847127,-1500.0,0.00020912,2]